{"text_format":"3","workbook":"xlsx","n_sheets":2,"sheets":["INÍCIO","QUADRO DE HORÁRIOS ANUAL"],"not_rendered":{"defined_names":2},"read":"whole","date_system":"1900"}

{"sheet":"INÍCIO","index":0,"n_rows":8,"n_cols":2,"rows_kept":8}
[null,"SOBRE ESTE MODELO"]
[null,"Controle as horas diárias, semanais, mensais e anuais neste Cartão de ponto de funcionário."]
[null,"Preencha as informações básicas como Nome do funcionário, Nome do gerente, Email e Número de telefone. "]
[null,"Adicione as horas em cada tabela mensal. Registre as horas regulares e as horas extras em colunas separadas para cada dia da semana. "]
[null,"Os totais de Horas trabalhadas, Horas normais e Horas extras são calculados automaticamente. "]
[null,"Observações:"]
[null,"instruções adicionais são fornecidas na coluna A da planilha de QUADRO DE HORÁRIOS ANUAL. Este texto está oculto de propósito. Para removê-lo, selecione a coluna A e selecione Excluir. Para reexibir o texto, selecione a coluna A e altere a cor da fonte. "]
[null,"Para saber mais sobre tabelas, pressione Shift e F10 dentro de uma tabela, selecione a opção TABELA e, em seguida, selecione TEXTO ALTERNATIVO."]

{"sheet":"QUADRO DE HORÁRIOS ANUAL","index":1,"n_rows":132,"n_cols":15,"rows_kept":132,"merged":[[0,1,0,2],[0,4,0,14],[10,6,10,7],[21,6,21,7],[32,6,32,7],[33,4,33,14],[43,6,43,7],[54,6,54,7],[65,6,65,7],[66,4,66,14],[76,6,76,7],[87,6,87,7],[98,6,98,7],[99,4,99,14],[109,6,109,7],[120,6,120,7],[131,6,131,7]]}
["Crie um quadro de horários diário, semanal, mensal ou anual do funcionário nesta planilha. \nInstruções especiais sobre como usar esta pasta de trabalho estão nas células nessa coluna. Pressione Seta para baixo para começar.\nO cabeçalho desta planilha está na célula à direita e os cabeçalhos de trimestres para janeiro, fevereiro e março estão na célula E1.","CARTÃO DE PONTO DE FUNCIONÁRIO",null,null,"Janeiro, fevereiro, março      Cartão de ponto do funcionário: diário, semanal, mensal, anual"]
["Insira o Nome do Funcionário na célula C2 e as horas normais e extras na tabela de janeiro, começando pela célula E2.","Nome do funcionário:",null,null,"Janeiro","Semana 1","Horas extras","Semana 2","Horas extras  ","Semana 3","Horas extras   ","Semana 4","Horas extras    ","Semana 5","Horas extras     "]
["Insira o Nome do Gerente na célula C3.","Gerente:",null,null,"Segunda",{"v":8,"d":"8.0"}]
["Insira o Endereço de email na célula C4.","Email:",null,null,"Terça",{"v":8,"d":"8.0"},{"v":2,"d":"2.0"}]
["Insira o Número de telefone na célula C5. A próxima instrução está na célula A9.","Telefone:",null,null,"Quarta"]
[{"$nulls":4},"Quinta"]
[{"$nulls":4},"Sexta"]
[{"$nulls":4},"Sábado"]
["O total anual de horas normais é calculado automaticamente na célula C9.","Horas normais:",{"$f":"HrsNormais","v":31},null,"Domingo"]
["O total anual de horas extras é calculado automaticamente na célula C10.","Horas extras:",{"$f":"Hrs_extras","v":4},null,"Total de horas semanal",{"$f":"SUM(F3:F9)","v":{"v":16,"d":"16.0"}},{"v":2,"d":"2.0"},{"v":0,"d":"0.0"},{"v":0,"d":"0.0"},{"v":0,"d":"0.0"},{"v":0,"d":"0.0"},{"v":0,"d":"0.0"},{"v":0,"d":"0.0"},{"v":0,"d":"0.0"},{"v":0,"d":"0.0"}]
["O total geral anual de horas é calculado automaticamente na célula C11. O total de horas normais de janeiro na célula F11 e o total de horas extras de janeiro na célula I11 são calculados automaticamente. A próxima instrução está na célula A13.","Total",{"$f":"HrsNormais+Hrs_extras","v":35},null,{"$f":"TEXT(DATEVALUE(Janeiro[[#Headers],[Janeiro]]&\"  \"&YEAR(TODAY())),\"mmm.\")&\" total: Horas normais\"","v":"jan. total: Horas normais"},{"$f":"SUM(Janeiro[Semana 1],Janeiro[Semana 2],Janeiro[Semana 3],Janeiro[Semana 4],Janeiro[Semana 5])","v":{"v":16,"d":"16.0"}},{"$f":"TEXT(DATEVALUE(Janeiro[[#Headers],[Janeiro]]&\"  \"&YEAR(TODAY())),\"mmm.\")&\" total: Horas extras\"","v":"jan. total: Horas extras"},null,{"$f":"SUM(Janeiro[Horas extras],Janeiro[[Horas extras  ]],Janeiro[[Horas extras   ]],Janeiro[[Horas extras    ]],Janeiro[[Horas extras     ]])","v":{"v":2,"d":"2.0"}}]
[]
["Insira as horas normais e extras na tabela de fevereiro, começando pela célula E13. A próxima instrução está na célula A22.",{"$nulls":3},"Fevereiro","Semana 1","Horas extras","Semana 2","Horas extras  ","Semana 3","Horas extras   ","Semana 4","Horas extras    ","Semana 5","Horas extras     "]
[{"$nulls":4},"Segunda",{"v":8,"d":"8.0"}]
[{"$nulls":4},"Terça",{"v":7,"d":"7.0"},{"v":2,"d":"2.0"}]
[{"$nulls":4},"Quarta"]
[{"$nulls":4},"Quinta"]
[{"$nulls":4},"Sexta"]
[{"$nulls":4},"Sábado"]
[{"$nulls":4},"Domingo"]
[{"$nulls":4},"Total de horas semanal",{"$f":"SUM(F14:F20)","v":{"v":15,"d":"15.0"}},{"v":2,"d":"2.0"},{"v":0,"d":"0.0"},{"v":0,"d":"0.0"},{"v":0,"d":"0.0"},{"v":0,"d":"0.0"},{"v":0,"d":"0.0"},{"v":0,"d":"0.0"},{"v":0,"d":"0.0"},{"v":0,"d":"0.0"}]
["O total de horas normais de fevereiro na célula F22 e o total de horas extras de fevereiro na célula I22 são calculados automaticamente. A próxima instrução está na célula A24.",{"$nulls":3},{"$f":"TEXT(DATEVALUE(Fevereiro[[#Headers],[Fevereiro]]&\"  \"&YEAR(TODAY())),\"mmm.\")&\" total: Horas normais\"","v":"fev. total: Horas normais"},{"$f":"SUM(Fevereiro[Semana 1],Fevereiro[Semana 2],Fevereiro[Semana 3],Fevereiro[Semana 4],Fevereiro[Semana 5])","v":{"v":15,"d":"15.0"}},{"$f":"TEXT(DATEVALUE(Fevereiro[[#Headers],[Fevereiro]]&\" \"&YEAR(TODAY())),\"mmm.\")&\" total: Horas extras\"","v":"fev. total: Horas extras"},null,{"$f":"SUM(Fevereiro[Horas extras],Fevereiro[[Horas extras  ]],Fevereiro[[Horas extras   ]],Fevereiro[[Horas extras    ]],Fevereiro[[Horas extras     ]])","v":{"v":2,"d":"2.0"}}]
[]
["Insira as horas normais e extras na tabela de março, começando pela célula E24. A próxima instrução está na célula A33.",{"$nulls":3},"Março","Semana 1","Horas extras","Semana 2","Horas extras ","Semana 3","Horas extras  ","Semana 4","Horas extras    ","Semana 5","Horas extras     "]
[{"$nulls":4},"Segunda"]
[{"$nulls":4},"Terça"]
[{"$nulls":4},"Quarta"]
[{"$nulls":4},"Quinta"]
[{"$nulls":4},"Sexta"]
[{"$nulls":4},"Sábado"]
[{"$nulls":4},"Domingo"]
[{"$nulls":4},"Total de horas semanal",{"$f":"SUM(F25:F31)","v":{"v":0,"d":"0.0"}},{"v":0,"d":"0.0"},{"v":0,"d":"0.0"},{"v":0,"d":"0.0"},{"v":0,"d":"0.0"},{"v":0,"d":"0.0"},{"v":0,"d":"0.0"},{"v":0,"d":"0.0"},{"v":0,"d":"0.0"},{"v":0,"d":"0.0"}]
["O total de horas normais de março na célula F33 e o total de horas extras de março na célula I33 são calculados automaticamente.",{"$nulls":3},{"$f":"TEXT(DATEVALUE(Março[[#Headers],[Março]]&\" \"&YEAR(TODAY())),\"mmm.\")&\" total: Horas normais\"","v":"mar. total: Horas normais"},{"$f":"SUM(Março[Semana 1],Março[Semana 2],Março[Semana 3],Março[Semana 4],Março[Semana 5])","v":{"v":0,"d":"0.0"}},{"$f":"TEXT(DATEVALUE(Março[[#Headers],[Março]]&\" \"&YEAR(TODAY())),\"mmm.\")&\" total: Horas extras\"","v":"mar. total: Horas extras"},null,{"$f":"SUM(Março[Horas extras],Março[[Horas extras ]],Março[[Horas extras  ]],Março[[Horas extras    ]],Março[[Horas extras     ]])","v":{"v":0,"d":"0.0"}}]
["Os cabeçalhos de trimestres para abril, maio e junho estão na célula E34. ",{"$nulls":3},"Abril, maio, junho      Cartão de ponto do funcionário: diário, semanal, mensal, anual"]
["Insira as horas normais e extras na tabela de abril, começando pela célula E35. A próxima instrução está na célula A44.",{"$nulls":3},"Abril","Semana 1","Horas extras","Semana 2","Horas extras  ","Semana 3","Horas extras   ","Semana 4","Horas extras    ","Semana 5","Horas extras     "]
[{"$nulls":4},"Segunda"]
[{"$nulls":4},"Terça"]
[{"$nulls":4},"Quarta"]
[{"$nulls":4},"Quinta"]
[{"$nulls":4},"Sexta"]
[{"$nulls":4},"Sábado"]
[{"$nulls":4},"Domingo"]
[{"$nulls":4},"Total de horas semanal",{"$f":"SUM(F36:F42)","v":{"v":0,"d":"0.0"}},{"v":0,"d":"0.0"},{"v":0,"d":"0.0"},{"v":0,"d":"0.0"},{"v":0,"d":"0.0"},{"v":0,"d":"0.0"},{"v":0,"d":"0.0"},{"v":0,"d":"0.0"},{"v":0,"d":"0.0"},{"v":0,"d":"0.0"}]
["O total de horas normais de abril na célula F44 e o total de horas extras de abril na célula I44 são calculados automaticamente. A próxima instrução está na célula A46.",{"$nulls":3},{"$f":"TEXT(DATEVALUE(Abril[[#Headers],[Abril]]&\" \"&YEAR(TODAY())),\"mmm.\")&\" total: Horas normais\"","v":"abr. total: Horas normais"},{"$f":"SUM(Abril[Semana 1],Abril[Semana 2],Abril[Semana 3],Abril[Semana 4],Abril[Semana 5])","v":{"v":0,"d":"0.0"}},{"$f":"TEXT(DATEVALUE(Abril[[#Headers],[Abril]]&\" \"&YEAR(TODAY())),\"mmm.\")&\" total: Horas extras\"","v":"abr. total: Horas extras"},null,{"$f":"SUM(Abril[Horas extras],Abril[[Horas extras  ]],Abril[[Horas extras   ]],Abril[[Horas extras    ]],Abril[[Horas extras     ]])","v":{"v":0,"d":"0.0"}}]
[]
["Insira as horas normais e extras na tabela de maio, começando pela célula E46. A próxima instrução está na célula A55.",{"$nulls":3},"Maio","Semana 1","Horas extras","Semana 2","Horas extras  ","Semana 3","Horas extras   ","Semana 4","Horas extras    ","Semana 5","Horas extras     "]
[{"$nulls":4},"Segunda"]
[{"$nulls":4},"Terça"]
[{"$nulls":4},"Quarta"]
[{"$nulls":4},"Quinta"]
[{"$nulls":4},"Sexta"]
[{"$nulls":4},"Sábado"]
[{"$nulls":4},"Domingo"]
[{"$nulls":4},"Total de horas semanal",{"$f":"SUM(F47:F53)","v":{"v":0,"d":"0.0"}},{"v":0,"d":"0.0"},{"v":0,"d":"0.0"},{"v":0,"d":"0.0"},{"v":0,"d":"0.0"},{"v":0,"d":"0.0"},{"v":0,"d":"0.0"},{"v":0,"d":"0.0"},{"v":0,"d":"0.0"},{"v":0,"d":"0.0"}]
["O total de horas normais de maio na célula F55 e o total de horas extras de maio na célula I55 são calculados automaticamente. A próxima instrução está na célula A57.",{"$nulls":3},{"$f":"TEXT(DATEVALUE(Maio[[#Headers],[Maio]]&\" \"&YEAR(TODAY())),\"mmm.\")&\" total: Horas normais\"","v":"mai. total: Horas normais"},{"$f":"SUM(Maio[Semana 1],Maio[Semana 2],Maio[Semana 3],Maio[Semana 4],Maio[Semana 5])","v":{"v":0,"d":"0.0"}},{"$f":"TEXT(DATEVALUE(Maio[[#Headers],[Maio]]&\" \"&YEAR(TODAY())),\"mmm.\")&\" total: Horas extras\"","v":"mai. total: Horas extras"},null,{"$f":"SUM(Maio[Horas extras],Maio[[Horas extras  ]],Maio[[Horas extras   ]],Maio[[Horas extras    ]],Maio[[Horas extras     ]])","v":{"v":0,"d":"0.0"}}]
[]
["Insira as horas normais e extras na tabela de junho, começando pela célula E57. A próxima instrução está na célula A66.",{"$nulls":3},"Junho","Semana 1","Horas extras","Semana 2","Horas extras  ","Semana 3","Horas extras   ","Semana 4","Horas extras    ","Semana 5","Horas extras     "]
[{"$nulls":4},"Segunda"]
[{"$nulls":4},"Terça"]
[{"$nulls":4},"Quarta"]
[{"$nulls":4},"Quinta"]
[{"$nulls":4},"Sexta"]
[{"$nulls":4},"Sábado"]
[{"$nulls":4},"Domingo"]
[{"$nulls":4},"Total de horas semanal",{"$f":"SUM(F58:F64)","v":{"v":0,"d":"0.0"}},{"v":0,"d":"0.0"},{"v":0,"d":"0.0"},{"v":0,"d":"0.0"},{"v":0,"d":"0.0"},{"v":0,"d":"0.0"},{"v":0,"d":"0.0"},{"v":0,"d":"0.0"},{"v":0,"d":"0.0"},{"v":0,"d":"0.0"}]
["O total de horas normais de junho na célula F66 e o total de horas extras de junho na célula I66 são calculados automaticamente.",{"$nulls":3},{"$f":"TEXT(DATEVALUE(Junho[[#Headers],[Junho]]&\" \"&YEAR(TODAY())),\"mmm.\")&\" total: Horas normais\"","v":"jun. total: Horas normais"},{"$f":"SUM(Junho[Semana 1],Junho[Semana 2],Junho[Semana 3],Junho[Semana 4],Junho[Semana 5])","v":{"v":0,"d":"0.0"}},{"$f":"TEXT(DATEVALUE(Junho[[#Headers],[Junho]]&\" \"&YEAR(TODAY())),\"mmm.\")&\" total: Horas extras\"","v":"jun. total: Horas extras"},null,{"$f":"SUM(Junho[Horas extras],Junho[[Horas extras  ]],Junho[[Horas extras   ]],Junho[[Horas extras    ]],Junho[[Horas extras     ]])","v":{"v":0,"d":"0.0"}}]
["Os cabeçalho do terceiro trimestre para julho, agosto e setembro estão na célula E67. ",{"$nulls":3},"Julho, agosto, setembro      Cartão de ponto do funcionário: diário, semanal, mensal, anual"]
["Insira as horas normais e extras na tabela de julho, começando pela célula E68. A próxima instrução está na célula A77.",{"$nulls":3},"Julho","Semana 1","Horas extras","Semana 2","Horas extras ","Semana 3","Horas extras  ","Semana 4","Horas extras   ","Semana 5","Horas extras     "]
[{"$nulls":4},"Segunda"]
[{"$nulls":4},"Terça"]
[{"$nulls":4},"Quarta"]
[{"$nulls":4},"Quinta"]
[{"$nulls":4},"Sexta"]
[{"$nulls":4},"Sábado"]
[{"$nulls":4},"Domingo"]
[{"$nulls":4},"Total de horas semanal",{"$f":"SUM(F69:F75)","v":{"v":0,"d":"0.0"}},{"v":0,"d":"0.0"},{"v":0,"d":"0.0"},{"v":0,"d":"0.0"},{"v":0,"d":"0.0"},{"v":0,"d":"0.0"},{"v":0,"d":"0.0"},{"v":0,"d":"0.0"},{"v":0,"d":"0.0"},{"v":0,"d":"0.0"}]
["O total de horas normais de julho na célula F77 e o total de horas extras de julho na célula I77 são calculados automaticamente. A próxima instrução está na célula A79.",{"$nulls":3},{"$f":"TEXT(DATEVALUE(Julho[[#Headers],[Julho]]&\" \"&YEAR(TODAY())),\"mmm.\")&\" total: Horas normais\"","v":"jul. total: Horas normais"},{"$f":"SUM(Julho[Semana 1],Julho[Semana 2],Julho[Semana 3],Julho[Semana 4],Julho[Semana 5])","v":{"v":0,"d":"0.0"}},{"$f":"TEXT(DATEVALUE(Julho[[#Headers],[Julho]]&\" \"&YEAR(TODAY())),\"mmm.\")&\" total: Horas extras\"","v":"jul. total: Horas extras"},null,{"$f":"SUM(Julho[Horas extras],Julho[[Horas extras ]],Julho[[Horas extras  ]],Julho[[Horas extras   ]],Julho[[Horas extras     ]])","v":{"v":0,"d":"0.0"}}]
[]
["Insira as horas normais e extras na tabela de agosto, começando pela célula E79. A próxima instrução está na célula A88.",{"$nulls":3},"Agosto","Semana 1","Horas extras","Semana 2","Horas extras ","Semana 3","Horas extras   ","Semana 4","Horas extras  ","Semana 5","Horas extras    "]
[{"$nulls":4},"Segunda"]
[{"$nulls":4},"Terça"]
[{"$nulls":4},"Quarta"]
[{"$nulls":4},"Quinta"]
[{"$nulls":4},"Sexta"]
[{"$nulls":4},"Sábado"]
[{"$nulls":4},"Domingo"]
[{"$nulls":4},"Total de horas semanal",{"$f":"SUBTOTAL(109,Agosto[Semana 1])","v":{"v":0,"d":"0.0"}},{"$f":"SUBTOTAL(109,Agosto[Horas extras])","v":{"v":0,"d":"0.0"}},{"$f":"SUBTOTAL(109,Agosto[Semana 2])","v":{"v":0,"d":"0.0"}},{"$f":"SUBTOTAL(109,Agosto[[Horas extras ]])","v":{"v":0,"d":"0.0"}},{"$f":"SUBTOTAL(109,Agosto[Semana 3])","v":{"v":0,"d":"0.0"}},{"$f":"SUBTOTAL(109,Agosto[[Horas extras   ]])","v":{"v":0,"d":"0.0"}},{"$f":"SUBTOTAL(109,Agosto[Semana 4])","v":{"v":0,"d":"0.0"}},{"$f":"SUBTOTAL(109,Agosto[[Horas extras  ]])","v":{"v":0,"d":"0.0"}},{"$f":"SUBTOTAL(109,Agosto[Semana 5])","v":{"v":0,"d":"0.0"}},{"$f":"SUBTOTAL(109,Agosto[[Horas extras    ]])","v":{"v":0,"d":"0.0"}}]
["O total de horas normais de agosto na célula F88 e o total de horas extras de agosto na célula I88 são calculados automaticamente. A próxima instrução está na célula A90.",{"$nulls":3},{"$f":"TEXT(DATEVALUE(Agosto[[#Headers],[Agosto]]&\" \"&YEAR(TODAY())),\"mmm.\")&\" total: Horas normais\"","v":"ago. total: Horas normais"},{"$f":"SUM(Agosto[Semana 1],Agosto[Semana 2],Agosto[Semana 3],Agosto[Semana 4],Agosto[Semana 5])","v":{"v":0,"d":"0.0"}},{"$f":"TEXT(DATEVALUE(Agosto[[#Headers],[Agosto]]&\" \"&YEAR(TODAY())),\"mmm.\")&\" total: Horas extras\"","v":"ago. total: Horas extras"},null,{"$f":"SUM(Agosto[Horas extras],Agosto[[Horas extras ]],Agosto[[Horas extras   ]],Agosto[[Horas extras  ]],Agosto[[Horas extras    ]])","v":{"v":0,"d":"0.0"}}]
[]
["Insira as horas normais e extras na tabela de setembro, começando pela célula E90. A próxima instrução está na célula A99.",{"$nulls":3},"Setembro","Semana 1","Horas extras","Semana 2","Horas extras ","Semana 3","Horas extras  ","Semana 4","Horas extras   ","Semana 5","Horas extras    "]
[{"$nulls":4},"Segunda"]
[{"$nulls":4},"Terça"]
[{"$nulls":4},"Quarta"]
[{"$nulls":4},"Quinta"]
[{"$nulls":4},"Sexta"]
[{"$nulls":4},"Sábado"]
[{"$nulls":4},"Domingo"]
[{"$nulls":4},"Total de horas semanal",{"$f":"SUBTOTAL(109,Setembro[Semana 1])","v":{"v":0,"d":"0.0"}},{"$f":"SUBTOTAL(109,Setembro[Horas extras])","v":{"v":0,"d":"0.0"}},{"$f":"SUBTOTAL(109,Setembro[Semana 2])","v":{"v":0,"d":"0.0"}},{"$f":"SUBTOTAL(109,Setembro[[Horas extras ]])","v":{"v":0,"d":"0.0"}},{"$f":"SUBTOTAL(109,Setembro[Semana 3])","v":{"v":0,"d":"0.0"}},{"$f":"SUBTOTAL(109,Setembro[[Horas extras  ]])","v":{"v":0,"d":"0.0"}},{"$f":"SUBTOTAL(109,Setembro[Semana 4])","v":{"v":0,"d":"0.0"}},{"$f":"SUBTOTAL(109,Setembro[[Horas extras   ]])","v":{"v":0,"d":"0.0"}},{"$f":"SUBTOTAL(109,Setembro[Semana 5])","v":{"v":0,"d":"0.0"}},{"$f":"SUBTOTAL(109,Setembro[[Horas extras    ]])","v":{"v":0,"d":"0.0"}}]
["O total de horas normais de setembro na célula F99 e o total de horas extras de setembro na célula I99 são calculados automaticamente.",{"$nulls":3},{"$f":"TEXT(DATEVALUE(Setembro[[#Headers],[Setembro]]&\" \"&YEAR(TODAY())),\"mmm.\")&\" total: Horas normais\"","v":"set. total: Horas normais"},{"$f":"SUM(Setembro[Semana 1],Setembro[Semana 2],Setembro[Semana 3],Setembro[Semana 4],Setembro[Semana 5])","v":{"v":0,"d":"0.0"}},{"$f":"TEXT(DATEVALUE(Setembro[[#Headers],[Setembro]]&\" \"&YEAR(TODAY())),\"mmm.\")&\" total: Horas extras\"","v":"set. total: Horas extras"},null,{"$f":"SUM(Setembro[Horas extras],Setembro[[Horas extras ]],Setembro[[Horas extras  ]],Setembro[[Horas extras   ]],Setembro[[Horas extras    ]])","v":{"v":0,"d":"0.0"}}]
["Os cabeçalhos do quarto trimestre para outubro, novembro e dezembro estão na célula E100. ",{"$nulls":3},"Outubro, novembro, dezembro      Cartão de ponto do funcionário: diário, semanal, mensal, anual"]
["Insira as horas normais e extras na tabela de outubro, começando pela célula E101. A próxima instrução está na célula A110.",{"$nulls":3},"Outubro","Semana 1","Horas extras","Semana 2","Horas extras ","Semana 3","Horas extras  ","Semana 4","Horas extras   ","Semana 5","Horas extras    "]
[{"$nulls":4},"Segunda"]
[{"$nulls":4},"Terça"]
[{"$nulls":4},"Quarta"]
[{"$nulls":4},"Quinta"]
[{"$nulls":4},"Sexta"]
[{"$nulls":4},"Sábado"]
[{"$nulls":4},"Domingo"]
[{"$nulls":4},"Total de horas semanal",{"$f":"SUBTOTAL(109,Outubro[Semana 1])","v":{"v":0,"d":"0.0"}},{"$f":"SUBTOTAL(109,Outubro[Horas extras])","v":{"v":0,"d":"0.0"}},{"$f":"SUBTOTAL(109,Outubro[Semana 2])","v":{"v":0,"d":"0.0"}},{"$f":"SUBTOTAL(109,Outubro[[Horas extras ]])","v":{"v":0,"d":"0.0"}},{"$f":"SUBTOTAL(109,Outubro[Semana 3])","v":{"v":0,"d":"0.0"}},{"$f":"SUBTOTAL(109,Outubro[[Horas extras  ]])","v":{"v":0,"d":"0.0"}},{"$f":"SUBTOTAL(109,Outubro[Semana 4])","v":{"v":0,"d":"0.0"}},{"$f":"SUBTOTAL(109,Outubro[[Horas extras   ]])","v":{"v":0,"d":"0.0"}},{"$f":"SUBTOTAL(109,Outubro[Semana 5])","v":{"v":0,"d":"0.0"}},{"$f":"SUBTOTAL(109,Outubro[[Horas extras    ]])","v":{"v":0,"d":"0.0"}}]
["O total de horas normais de outubro na célula F110 e o total de horas extras de outubro na célula I110 são calculados automaticamente. A próxima instrução está na célula A112.",{"$nulls":3},{"$f":"TEXT(DATEVALUE(Outubro[[#Headers],[Outubro]]&\" \"&YEAR(TODAY())),\"mmm.\")&\" total: Horas normais\"","v":"out. total: Horas normais"},{"$f":"SUM(Outubro[Semana 1],Outubro[Semana 2],Outubro[Semana 3],Outubro[Semana 4],Outubro[Semana 5])","v":{"v":0,"d":"0.0"}},{"$f":"TEXT(DATEVALUE(Outubro[[#Headers],[Outubro]]&\" \"&YEAR(TODAY())),\"mmm.\")&\" total: Horas extras\"","v":"out. total: Horas extras"},null,{"$f":"SUM(Outubro[Horas extras],Outubro[[Horas extras ]],Outubro[[Horas extras  ]],Outubro[[Horas extras   ]],Outubro[[Horas extras    ]])","v":{"v":0,"d":"0.0"}}]
[]
["Insira as horas normais e extras na tabela de novembro, começando pela célula E112. A próxima instrução está na célula A121.",{"$nulls":3},"Novembro","Semana 1","Horas extras","Semana 2","Horas extras ","Semana 3","Horas extras  ","Semana 4","Horas extras    ","Semana 5","Horas extras     "]
[{"$nulls":4},"Segunda"]
[{"$nulls":4},"Terça"]
[{"$nulls":4},"Quarta"]
[{"$nulls":4},"Quinta"]
[{"$nulls":4},"Sexta"]
[{"$nulls":4},"Sábado"]
[{"$nulls":4},"Domingo"]
[{"$nulls":4},"Total de horas semanal",{"$f":"SUBTOTAL(109,Novembro[Semana 1])","v":{"v":0,"d":"0.0"}},{"$f":"SUBTOTAL(109,Novembro[Horas extras])","v":{"v":0,"d":"0.0"}},{"$f":"SUBTOTAL(109,Novembro[Semana 2])","v":{"v":0,"d":"0.0"}},{"$f":"SUBTOTAL(109,Novembro[[Horas extras ]])","v":{"v":0,"d":"0.0"}},{"$f":"SUBTOTAL(109,Novembro[Semana 3])","v":{"v":0,"d":"0.0"}},{"$f":"SUBTOTAL(109,Novembro[[Horas extras  ]])","v":{"v":0,"d":"0.0"}},{"$f":"SUBTOTAL(109,Novembro[Semana 4])","v":{"v":0,"d":"0.0"}},{"$f":"SUBTOTAL(109,Novembro[[Horas extras    ]])","v":{"v":0,"d":"0.0"}},{"$f":"SUBTOTAL(109,Novembro[Semana 5])","v":{"v":0,"d":"0.0"}},{"$f":"SUBTOTAL(109,Novembro[[Horas extras     ]])","v":{"v":0,"d":"0.0"}}]
["O total de horas normais de novembro na célula F121 e o total de horas extras de novembro na célula I121 são calculados automaticamente. A próxima instrução está na célula A123.",{"$nulls":3},{"$f":"TEXT(DATEVALUE(Novembro[[#Headers],[Novembro]]&\" \"&YEAR(TODAY())),\"mmm.\")&\" total: Horas normais\"","v":"nov. total: Horas normais"},{"$f":"SUM(Novembro[Semana 1],Novembro[Semana 2],Novembro[Semana 3],Novembro[Semana 4],Novembro[Semana 5])","v":{"v":0,"d":"0.0"}},{"$f":"TEXT(DATEVALUE(Novembro[[#Headers],[Novembro]]&\" \"&YEAR(TODAY())),\"mmm.\")&\" total: Horas extras\"","v":"nov. total: Horas extras"},null,{"$f":"SUM(Novembro[Horas extras],Novembro[[Horas extras ]],Novembro[[Horas extras  ]],Novembro[[Horas extras    ]],Novembro[[Horas extras     ]])","v":{"v":0,"d":"0.0"}}]
[]
["Insira as horas normais e extras na tabela de dezembro, começando pela célula E123. A próxima instrução está na célula A132.",{"$nulls":3},"Dezembro","Semana 1","Horas extras","Semana 2","Horas extras ","Semana 3","Horas extras  ","Semana 4","Horas extras   ","Semana 5","Horas extras    "]
[{"$nulls":4},"Segunda"]
[{"$nulls":4},"Terça"]
[{"$nulls":4},"Quarta"]
[{"$nulls":4},"Quinta"]
[{"$nulls":4},"Sexta"]
[{"$nulls":4},"Sábado"]
[{"$nulls":4},"Domingo"]
[{"$nulls":4},"Total de horas semanal",{"$f":"SUBTOTAL(109,Dezembro[Semana 1])","v":{"v":0,"d":"0.0"}},{"$f":"SUBTOTAL(109,Dezembro[Horas extras])","v":{"v":0,"d":"0.0"}},{"$f":"SUBTOTAL(109,Dezembro[Semana 2])","v":{"v":0,"d":"0.0"}},{"$f":"SUBTOTAL(109,Dezembro[[Horas extras ]])","v":{"v":0,"d":"0.0"}},{"$f":"SUBTOTAL(109,Dezembro[Semana 3])","v":{"v":0,"d":"0.0"}},{"$f":"SUBTOTAL(109,Dezembro[[Horas extras  ]])","v":{"v":0,"d":"0.0"}},{"$f":"SUBTOTAL(109,Dezembro[Semana 4])","v":{"v":0,"d":"0.0"}},{"$f":"SUBTOTAL(109,Dezembro[[Horas extras   ]])","v":{"v":0,"d":"0.0"}},{"$f":"SUBTOTAL(109,Dezembro[Semana 5])","v":{"v":0,"d":"0.0"}},{"$f":"SUBTOTAL(109,Dezembro[[Horas extras    ]])","v":{"v":0,"d":"0.0"}}]
["O total de horas normais de dezembro na célula F132 e o total de horas extras de dezembro na célula I132 são calculados automaticamente.",{"$nulls":3},{"$f":"TEXT(DATEVALUE(Dezembro[[#Headers],[Dezembro]]&\" \"&YEAR(TODAY())),\"mmm.\")&\" total: Horas normais\"","v":"dez. total: Horas normais"},{"$f":"SUM(Dezembro[Semana 1],Dezembro[Semana 2],Dezembro[Semana 3],Dezembro[Semana 4],Dezembro[Semana 5])","v":{"v":0,"d":"0.0"}},{"$f":"TEXT(DATEVALUE(Dezembro[[#Headers],[Dezembro]]&\" \"&YEAR(TODAY())),\"mmm.\")&\" total: Horas extras\"","v":"dez. total: Horas extras"},null,{"$f":"SUM(G124:G130,I124:I130,K124:K130,M124:M130,O124:O130)","v":{"v":0,"d":"0.0"}}]